bitfinex/quotes_SOLUSD_20240913
["timestamp","ask_amount","ask_price","bid_price","bid_amount"]
[1726266709887,0.37647,139.63,139.58,0.0873]
[1726266712688,45.557864,139.59,139.58,0.0873]
[1726266712881,45.683354,139.59,139.58,0.0873]
[1726266714183,45.306884,139.59,139.58,0.0873]
[1726266714382,23.776884,139.59,139.58,0.0873]
[1726266714681,7.1618,139.63,139.58,0.0873]
[1726266715584,21.53,139.62,139.58,0.0873]
[1726266715792,0.12549,139.61,139.58,0.0873]
[1726266716178,45.432374,139.61,139.58,0.0873]
[1726266720195,45.306884,139.62,139.58,0.0873]
[1726266720397,45.306884,139.62,139.59,6.5188]
[1726266722306,0.12549,139.6,139.58,0.0873]
[1726266722817,0.25098,139.61,139.58,0.0873]
[1726266724212,0.12549,139.59,139.58,0.0873]
[1726266724512,0.37647,139.59,139.58,0.0873]
[1726266727619,52.847154,139.59,139.58,0.0873]
[1726266729904,45.683354,139.59,139.58,0.0873]
[1726266732292,52.847154,139.59,139.58,0.0873]
[1726266734318,45.683354,139.59,139.58,0.0873]
[1726266735716,52.847154,139.59,139.58,0.0873]
[1726266736431,45.683354,139.59,139.58,0.0873]
[1726266739624,52.847154,139.59,139.58,0.0873]
[1726266742204,60.33080689,139.59,139.58,0.0873]
[1726266751120,60.33080689,139.59,139.53,23.2167988]
[1726266751121,7.1651,139.57,139.53,23.2167988]
[1726266751323,0.12549,139.58,139.53,23.2167988]
[1726266751324,28.94638,139.56,139.53,23.2167988]
[1726266751633,0.25098,139.55,139.53,0.2579988]
[1726266751807,21.90647,139.54,139.53,0.2579988]
[1726266753229,45.683354,139.54,139.53,0.2579988]
[1726266753600,45.683354,139.54,139.49,0.2579988]
[1726266753601,23.902374,139.53,139.49,0.2579988]
[1726266753806,45.683354,139.54,139.49,0.2579988]
[1726266753807,28.94938,139.5,139.49,0.2579988]
[1726266754063,29.07487,139.5,139.49,0.2579988]
[1726266754913,21.90647,139.5,139.49,0.2579988]
[1726266755216,21.65549,139.5,139.49,0.2579988]
[1726266755430,21.90647,139.5,139.49,0.2579988]
[1726266755646,45.683354,139.5,139.49,0.2579988]
[1726266755954,45.557864,139.5,139.49,0.2579988]
[1726266756243,45.683354,139.5,139.49,0.2579988]
[1726266775641,45.557864,139.5,139.49,0.2579988]
[1726266775848,45.432374,139.5,139.49,0.2579988]
[1726266776349,45.306884,139.5,139.49,0.2579988]
[1726266776567,45.432374,139.5,139.49,0.2579988]
[1726266778160,45.557864,139.5,139.49,0.2579988]
[1726266778375,52.851754,139.5,139.49,0.2579988]
[1726266778942,45.683354,139.5,139.49,0.2579988]
[1726266780568,21.53,139.5,139.49,0.2579988]
[1726266781358,21.53,139.53,139.49,0.2579988]
[1726266782076,0.25098,139.52,139.49,0.2579988]
[1726266782366,21.53,139.55,139.49,0.2579988]
[1726266783448,21.78098,139.54,139.49,0.2579988]
[1726266783660,0.12549,139.53,139.49,0.2579988]
[1726266784256,21.78098,139.52,139.49,0.2579988]
[1726266784577,45.306884,139.5,139.49,0.2579988]
[1726266785654,23.776884,139.5,139.49,0.2579988]
[1726266787351,45.306884,139.5,139.49,0.2579988]
[1726266789362,45.683354,139.5,139.49,0.2579988]
[1726266791663,45.557864,139.5,139.49,0.2579988]
[1726266793989,23.776884,139.5,139.49,0.2579988]
[1726266794962,14.63702249,139.55,139.49,0.2579988]
[1726266795156,21.53,139.54,139.49,0.2579988]
[1726266795360,28.6965,139.54,139.49,0.2579988]
[1726266795859,0.25098,139.53,139.49,0.2579988]
[1726266796076,21.53,139.52,139.49,0.2579988]
[1726266796269,21.78098,139.5,139.49,0.2579988]
[1726266796563,45.683354,139.5,139.49,0.2579988]
[1726266796972,45.306884,139.5,139.49,0.2579988]
[1726266806481,45.683354,139.5,139.49,0.2579988]
[1726266806869,45.306884,139.5,139.49,0.2579988]
[1726266808398,45.557864,139.5,139.49,0.2579988]
[1726266808890,45.683354,139.5,139.49,0.2579988]
[1726266814401,45.557864,139.5,139.49,0.2579988]
[1726266814603,21.53,139.5,139.49,0.2579988]
[1726266815702,45.306884,139.5,139.49,0.2579988]
[1726266823529,45.306884,139.49,139.46,5.2276798]
[1726266832903,45.306884,139.49,139.45,16.7405988]
[1726266834525,45.306884,139.49,139.45,0.2579988]
[1726266840208,7.47055643,139.54,139.45,0.2579988]
[1726266840424,21.53,139.54,139.47,6.0735]
[1726266842015,23.776884,139.51,139.47,6.0735]
[1726266843523,0.25098,139.5,139.45,0.2579988]
[1726266844932,45.306884,139.51,139.45,0.2579988]
[1726266851837,0.25098,139.5,139.45,0.2579988]
[1726266852137,0.37647,139.5,139.45,0.2579988]
[1726266855514,21.53,139.51,139.45,0.2579988]
[1726266855712,21.53,139.5,139.45,0.2579988]
[1726266856721,21.53,139.52,139.45,0.2579988]
[1726266857118,23.776884,139.51,139.45,0.2579988]
[1726266857321,21.53,139.5,139.45,0.2579988]
[1726266857549,23.776884,139.49,139.45,0.2579988]
[1726266858240,23.776884,139.5,139.45,0.2579988]
[1726266859046,45.306884,139.51,139.45,0.2579988]
[1726266861227,21.53,139.52,139.45,20.2579988]
[1726266862727,23.776884,139.51,139.45,20.2579988]
[1726266863045,23.776884,139.51,139.45,0.2579988]
[1726266863732,23.776884,139.51,139.45,6.3734988]
[1726266865635,45.306884,139.51,139.45,6.3734988]
[1726266865839,23.776884,139.51,139.45,6.3734988]
[1726266866231,45.326884,139.51,139.45,6.3734988]
[1726266871729,45.326884,139.51,139.45,0.2579988]
[1726266875555,0.12549,139.5,139.45,0.2579988]
[1726266876237,0.25098,139.5,139.45,0.2579988]
[1726266884848,0.25098,139.49,139.45,0.2579988]
[1726266890073,0.12549,139.48,139.45,0.2579988]
[1726266890274,21.80098,139.48,139.45,0.2579988]
[1726266890568,21.55,139.47,139.45,0.2579988]
[1726266890768,23.776884,139.46,139.45,0.2579988]
[1726266897870,45.326884,139.46,139.45,0.2579988]
[1726266901867,67.160484,139.46,139.45,0.2579988]
[1726266902098,67.160484,139.46,139.41,0.2579988]
[1726266902099,45.577864,139.42,139.41,0.2579988]
[1726266902375,45.703354,139.42,139.41,0.2579988]
[1726266903251,45.452374,139.42,139.41,0.2579988]
[1726266903464,45.703354,139.42,139.41,0.2579988]
[1726266905373,45.326884,139.42,139.41,0.2579988]
[1726266905576,45.452374,139.42,139.41,0.2579988]
[1726266907659,45.326884,139.42,139.41,0.2579988]
[1726266907861,21.55,139.45,139.41,0.2579988]
[1726266908079,0.12549,139.44,139.41,0.2579988]
[1726266908276,21.55,139.45,139.41,0.2579988]
[1726266909290,21.55,139.43,139.41,0.2579988]
[1726266909691,45.326884,139.42,139.41,0.2579988]
[1726266910368,45.452374,139.42,139.41,0.2579988]
[1726266911385,45.326884,139.42,139.41,0.2579988]
[1726266912470,23.776884,139.42,139.41,0.2579988]
[1726266913275,45.326884,139.42,139.41,0.2579988]
[1726266914066,45.577864,139.42,139.41,0.2579988]
[1726266914269,45.703354,139.42,139.41,0.2579988]
[1726266915797,23.776884,139.42,139.41,0.2579988]
[1726266916184,45.326884,139.42,139.41,0.2579988]
[1726266917196,23.776884,139.42,139.41,0.2579988]
[1726266918397,45.326884,139.42,139.41,0.2579988]
[1726266918974,13.29,139.49,139.41,0.2579988]
[1726266919971,21.55,139.48,139.41,0.2579988]
[1726266920375,21.55,139.44,139.41,0.2579988]
[1726266920697,24.153354,139.47,139.41,0.2579988]
[1726266920698,45.326884,139.43,139.41,0.2579988]
[1726266921085,23.776884,139.43,139.41,0.2579988]
[1726266924381,45.326884,139.43,139.41,0.2579988]
[1726266932626,0.25098,139.42,139.41,0.2579988]
[1726266932823,0.37647,139.42,139.41,0.2579988]
[1726266937226,52.875854,139.42,139.41,0.2579988]
[1726266937933,52.624874,139.42,139.41,0.2579988]
[1726266939216,52.875854,139.42,139.41,0.2579988]
[1726266942617,45.703354,139.42,139.41,0.2579988]
[1726266943619,52.875854,139.42,139.41,0.2579988]
[1726266948135,52.875854,139.42,139.37,0.2579988]
[1726266948136,28.7237,139.4,139.37,0.2579988]
[1726266948308,0.37647,139.39,139.37,0.2579988]
[1726266950237,21.55,139.38,139.37,0.2579988]
[1726266950533,45.703354,139.38,139.37,0.2579988]
[1726266951819,52.877954,139.38,139.37,0.2579988]
[1726266953839,45.703354,139.38,139.37,0.2579988]
[1726266957025,21.55,139.39,139.37,0.2579988]
[1726266957413,28.7241,139.39,139.37,0.2579988]
[1726266957837,21.55,139.39,139.37,0.2579988]
[1726266958016,7.42669455,139.41,139.37,0.2579988]
[1726266958017,21.55,139.4,139.37,0.2579988]
[1726266959144,28.7236,139.4,139.37,0.2579988]
[1726266959321,45.577864,139.38,139.37,0.2579988]
[1726266959740,45.703354,139.38,139.37,0.2579988]
[1726266961432,52.877954,139.38,139.37,0.2579988]
[1726266961753,45.703354,139.38,139.37,0.2579988]
[1726266963631,52.877954,139.38,139.37,0.2579988]
[1726266964838,52.877954,139.38,139.37,1e-08]
[1726266964839,60.3086921,139.38,139.37,1e-08]
[1726266968648,52.877954,139.38,139.37,1e-08]
[1726266968940,45.703354,139.38,139.37,1e-08]
[1726266969155,21.55,139.38,139.37,1e-08]
[1726266970321,45.703354,139.38,139.37,1e-08]
[1726266973546,52.877954,139.38,139.37,1e-08]
[1726266975047,45.703354,139.38,139.37,1e-08]
[1726266977338,52.877954,139.38,139.37,1e-08]
[1726266979835,60.32312489,139.38,139.37,1e-08]
[1726266980132,38.77312489,139.38,139.37,1e-08]
[1726266980359,45.703354,139.38,139.37,1e-08]
[1726266980856,21.55,139.39,139.37,1e-08]
[1726266981542,20.05,139.39,139.37,1e-08]
[1726266982360,42.326884,139.38,139.37,1e-08]
[1726266983852,42.326884,139.38,139.37,21.27760001]
[1726266986538,23.776884,139.38,139.37,21.27760001]
[1726266987568,8.69174779,139.44,139.37,21.27760001]
[1726266987860,8.67878549,139.48,139.37,21.27760001]
[1726266988068,7.43895243,139.48,139.37,21.27760001]
[1726266988267,14.60845243,139.48,139.37,21.27760001]
[1726266988477,7.1695,139.48,139.39,16.6329]
[1726266988652,21.55,139.48,139.4,6.1783]
[1726266988853,21.55,139.48,139.41,16.6329]
[1726266989081,7.69520799,139.51,139.41,16.6329]
[1726266989082,28.7185,139.5,139.41,16.6329]
[1726266989249,0.25799879,139.48,139.41,16.6329]
[1726266989564,21.80799879,139.48,139.41,16.6329]
[1726266989872,28.97749879,139.48,139.41,16.6329]
[1726266990367,21.80799879,139.48,139.41,16.6329]
[1726266990565,0.25799879,139.48,139.41,16.6329]
[1726266991874,24.03488279,139.48,139.41,16.6329]
[1726266992176,0.25799879,139.48,139.41,16.6329]
[1726266993270,0.25799879,139.48,139.42,6.1783]
[1726266993463,0.25799879,139.48,139.43,16.6329]
[1726266997167,0.25799879,139.48,139.44,6.4175]
[1726266997657,0.25799879,139.48,139.45,15.7546]
[1726266997862,0.2579988,139.51,139.47,15.7546]
[1726266998052,0.2579988,139.51,139.48,6.4175]
[1726266998254,0.2579988,139.51,139.49,15.7546]
[1726266998553,0.2579988,139.55,139.5,6.4175]
[1726266998870,0.2579988,139.55,139.51,1.43325363]
[1726266999059,0.2579988,139.55,139.52,1.4331509]
[1726266999288,0.2579988,139.55,139.5,6.4175]
[1726267000254,0.2579988,139.55,139.51,1.43225476]
[1726267000450,0.2579988,139.55,139.53,15.7546]
[1726267002178,0.2579988,139.55,139.54,1.43194681]
[1726267002353,0.2579988,139.55,139.53,15.7546]
[1726267002978,0.2579988,139.55,139.54,6.4153]
[1726267003684,0.2579988,139.6,139.54,6.4153]
[1726267004390,0.2579988,139.6,139.56,16.4262]
[1726267009180,0.2579988,139.6,139.57,6.4153]
[1726267017965,0.2579988,139.6,139.58,1.43184192]
[1726267018183,0.2579988,139.6,139.57,6.4153]
[1726267021773,0.2579988,139.6,139.58,1.43091351]
[1726267021973,0.2579988,139.6,139.57,6.4153]
[1726267024993,0.2579988,139.6,139.59,16.42189]
[1726267025176,0.2579988,139.6,139.59,16.54738]
[1726267025373,0.2579988,139.6,139.59,16.67287]
[1726267026380,0.2579988,139.64,139.6,6.3439]
[1726267027398,21.55,139.73,139.6,6.3439]
[1726267027576,0.2675358,139.65,139.6,6.3439]
[1726267028293,0.2675358,139.65,139.61,20.25098]
[1726267030001,0.2675358,139.65,139.62,0.12549]
[1726267031503,0.2675358,139.65,139.63,16.2964]
[1726267035309,0.3211062,139.7,139.64,26.59488]
[1726267035490,0.3211062,139.7,139.64,26.72037]
[1726267038315,0.3211062,139.7,139.64,26.46939]
[1726267038527,0.3211062,139.7,139.64,26.3439]
[1726267039909,0.3211062,139.7,139.64,6.3439]
[1726267040616,23.776884,139.69,139.64,6.3439]
[1726267041215,24.0979902,139.7,139.64,6.3439]
[1726267047298,0.3211062,139.7,139.64,6.3439]
[1726267051320,24.027864,139.69,139.64,6.3439]
[1726267051616,24.153354,139.69,139.64,6.3439]
[1726267051831,31.312054,139.69,139.64,6.3439]
[1726267053200,24.153354,139.69,139.64,6.3439]
[1726267055509,52.862254,139.69,139.64,6.3439]
[1726267060118,45.577864,139.67,139.6,6.0496]
[1726267060322,23.776884,139.66,139.6,6.0496]
[1726267061519,45.577864,139.67,139.6,6.0496]
[1726267061832,52.737564,139.67,139.6,6.0496]
[1726267062324,52.737564,139.67,139.6,5.5496]
[1726267062700,24.027864,139.65,139.6,5.5496]
[1726267066734,23.776884,139.63,139.6,5.5496]
[1726267067627,45.326884,139.63,139.6,5.5496]
[1726267068222,45.326884,139.63,139.59,16.1627]
[1726267068447,45.326884,139.63,139.57,6.0676]
[1726267068448,52.488784,139.63,139.57,6.0676]
[1726267068735,0.12549,139.62,139.57,6.0676]
[1726267074946,0.25098,139.62,139.57,6.0676]
[1726267084833,45.452374,139.63,139.57,6.0676]
[1726267085150,21.55,139.66,139.57,6.0676]
[1726267085331,28.7103,139.66,139.57,6.0676]
[1726267086042,28.7113,139.64,139.57,6.0676]
[1726267086923,21.55,139.62,139.57,6.0676]
[1726267087142,23.776884,139.61,139.57,6.0676]
[1726267092345,45.326884,139.61,139.57,6.0676]
[1726267094857,23.776884,139.62,139.57,6.0676]
[1726267095059,45.326884,139.62,139.57,6.0676]
[1726267129866,52.489184,139.62,139.57,6.0676]
[1726267130561,0.25098,139.61,139.57,6.0676]
[1726267134562,45.452374,139.59,139.56,15.7659]
[1726267134974,45.452374,139.59,139.55,0.1415906]
[1726267137388,8.67878549,139.62,139.56,15.9318]
[1726267137591,21.55,139.64,139.56,15.9318]
[1726267138794,21.55,139.62,139.56,15.9318]
[1726267139169,21.55,139.6,139.56,15.9318]
[1726267139497,21.55,139.59,139.56,15.9318]
[1726267139785,23.776884,139.58,139.56,15.9318]
[1726267140675,23.776884,139.58,139.55,0.1415906]
[1726267140676,45.326884,139.58,139.55,0.1415906]
[1726267141586,24.027864,139.59,139.55,0.1415906]
[1726267141803,0.12549,139.58,139.55,0.1415906]
[1726267142101,0.25098,139.58,139.55,0.1415906]
[1726267143669,23.902374,139.59,139.55,0.1415906]
[1726267143875,23.776884,139.6,139.55,0.1415906]
[1726267144068,21.55,139.62,139.55,0.1415906]
[1726267145177,24.027864,139.61,139.55,0.1415906]
[1726267146080,0.25098,139.6,139.55,0.1415906]
[1726267146898,0.12549,139.59,139.55,0.1415906]
[1726267147391,0.25098,139.59,139.55,0.1415906]
[1726267147694,0.12549,139.58,139.55,0.1415906]
[1726267151697,0.25098,139.59,139.55,0.1415906]
[1726267151698,0.12549,139.59,139.55,0.1415906]
[1726267152280,21.55,139.61,139.55,0.1415906]
[1726267152971,23.776884,139.58,139.55,0.1415906]
[1726267156399,23.776884,139.6,139.55,0.1415906]
[1726267156607,21.55,139.61,139.56,16.4681]
[1726267157192,21.55,139.63,139.56,16.4681]
[1726267157894,21.55,139.61,139.56,16.4681]
[1726267158286,23.776884,139.6,139.56,16.4681]
[1726267159094,45.326884,139.6,139.56,16.4681]
[1726267160405,0.37647,139.59,139.56,16.4681]
[1726267160777,0.37647,139.59,139.55,0.1415906]
[1726267161190,45.326884,139.57,139.55,0.1415906]
[1726267172004,43.826884,139.57,139.55,0.1415906]
[1726267179018,22.276884,139.57,139.55,0.1415906]
[1726267179392,21.55,139.61,139.55,0.1415906]
[1726267180123,21.55,139.62,139.56,22.7892]
[1726267181334,0.37647,139.61,139.56,22.7892]
[1726267182413,21.55,139.6,139.56,22.7892]
[1726267182722,23.776884,139.59,139.56,22.7892]
[1726267189433,21.55,139.62,139.56,22.7892]
[1726267189608,45.326884,139.61,139.56,22.7892]
[1726267193805,0.25098,139.6,139.56,22.7892]
[1726267194126,45.326884,139.58,139.55,0.1415906]
[1726267198602,32.360168,139.58,139.55,0.1415906]
[1726267198829,0.25098,139.58,139.55,0.1415906]
[1726267200809,21.55,139.57,139.55,0.1415906]
[1726267208218,23.776884,139.58,139.55,0.1415906]
[1726267209016,0.25098,139.6,139.55,0.1415906]
[1726267209215,0.12549,139.59,139.55,0.1415906]
[1726267210441,0.25098,139.58,139.55,0.1415906]
[1726267210643,45.452374,139.59,139.55,0.1415906]
[1726267214126,0.25098,139.58,139.55,0.1415906]
[1726267215219,45.452374,139.59,139.55,0.1415906]
[1726267218251,0.25098,139.58,139.55,0.1415906]
[1726267219145,45.452374,139.59,139.55,0.1415906]
[1726267223353,0.25098,139.58,139.55,0.1415906]
[1726267226451,0.12549,139.57,139.55,0.1415906]
[1726267227444,0.25098,139.58,139.55,0.1415906]
[1726267227645,45.326884,139.59,139.55,0.1415906]
[1726267262970,21.55,139.59,139.56,21.4287]
[1726267263275,45.577864,139.62,139.56,21.4287]
[1726267263451,0.12549,139.61,139.56,21.4287]
[1726267266979,45.577864,139.62,139.56,21.4287]
[1726267267982,0.12549,139.63,139.56,21.4287]
[1726267269289,21.55,139.62,139.56,21.4287]
[1726267271183,0.120843,139.66,139.58,6.129]
[1726267271360,0.120843,139.66,139.59,15.2997]
[1726267272879,0.120843,139.66,139.61,15.2997]
[1726267274469,0.120843,139.66,139.62,6.129]
[1726267276579,0.120843,139.66,139.64,6.5958]
[1726267276781,0.2624336,139.7,139.65,16.5953]
[1726267277005,0.2624336,139.7,139.66,6.5958]
[1726267278191,0.2624336,139.7,139.67,16.5953]
[1726267278863,0.2624336,139.7,139.69,6.5958]
[1726267285694,0.2624336,139.7,139.65,6.2593]
[1726267287008,0.12549,139.69,139.65,6.2593]
[1726267287177,0.25098,139.69,139.65,6.2593]
[1726267287494,0.12549,139.69,139.65,6.2593]
[1726267288892,0.2624336,139.7,139.65,6.2593]
[1726267304518,4.2624336,139.7,139.65,6.2593]
[1726267310841,23.776884,139.69,139.63,15.0316]
[1726267324217,4.2624336,139.7,139.63,15.0316]
[1726267325010,4.2624336,139.7,139.64,1.43041808]
[1726267325211,4.2624336,139.7,139.65,1.43182232]
[1726267325619,4.2624336,139.7,139.63,15.0316]
[1726267327217,23.776884,139.69,139.63,15.0316]
[1726267330816,4.2624336,139.7,139.63,15.0316]
[1726267332516,4.2624336,139.7,139.64,0.12549]
[1726267332716,4.2624336,139.7,139.63,15.0316]
[1726267333920,23.776884,139.69,139.63,15.0316]
[1726267339919,4.2624336,139.7,139.63,15.0316]
[1726267342040,4.2624336,139.7,139.64,6.3629]
[1726267344451,4.2624336,139.7,139.65,0.37647]
[1726267347348,4.2624336,139.7,139.65,20.37647]
[1726267349323,4.2624336,139.7,139.65,20.25098]
[1726267349630,4.2624336,139.7,139.64,6.3629]
[1726267352157,4.2624336,139.7,139.65,0.25098]
[1726267352457,4.2624336,139.7,139.67,6.14689]
[1726267354431,4.2624336,139.7,139.68,0.12549]
[1726267354645,4.2624336,139.7,139.68,0.25098]
[1726267356858,4.2624336,139.7,139.69,15.07137143]
[1726267360460,4.2624336,139.7,139.68,0.25098]
[1726267360768,4.2624336,139.7,139.69,15.07086727]
[1726267361358,4.2624336,139.7,139.69,5.79648741]
[1726267371359,4.2624336,139.7,139.67,6.14689]
[1726267371673,8.2624336,139.7,139.68,15.07106054]
[1726267371847,8.2624336,139.7,139.67,6.0214]
[1726267372046,8.2624336,139.7,139.68,5.79796164]
[1726267372280,8.2624336,139.7,139.67,6.0214]
[1726267372572,8.2624336,139.7,139.68,5.79796164]
[1726267372780,8.2624336,139.7,139.67,6.0214]
[1726267372959,8.2624336,139.7,139.68,5.79828578]
[1726267373158,8.2624336,139.7,139.67,6.0214]
[1726267373364,8.2624336,139.7,139.68,5.79835368]
[1726267373551,8.2624336,139.7,139.67,6.0214]
[1726267373851,8.2624336,139.7,139.68,5.79837864]
[1726267374047,8.2624336,139.7,139.67,6.0214]
[1726267374266,8.2624336,139.7,139.68,5.79835176]
[1726267374465,8.2624336,139.7,139.64,9.28035804]
[1726267374671,8.2624336,139.7,139.65,15.08039145]
[1726267374863,8.2624336,139.7,139.66,15.08039145]
[1726267375064,8.2624336,139.7,139.67,5.80003341]
[1726267375268,8.2624336,139.7,139.64,9.28065281]
[1726267375452,8.2624336,139.7,139.64,20.0]
[1726267376652,8.2624336,139.7,139.65,0.25098]
[1726267376859,8.2624336,139.7,139.66,0.12549]
[1726267383673,8.2624336,139.7,139.67,6.59678]
[1726267383850,8.2624336,139.7,139.68,0.12549]
[1726267385166,8.2624336,139.7,139.67,6.59678]
[1726267390685,8.2624336,139.7,139.67,0.12549]
[1726267390867,8.2624336,139.7,139.66,0.12549]
[1726267391072,8.2624336,139.7,139.66,0.25098]
[1726267393587,8.2624336,139.7,139.66,20.25098]
[1726267397368,8.2624336,139.7,139.67,0.12549]
[1726267397565,8.2624336,139.7,139.67,0.37647]
[1726267397874,8.2624336,139.7,139.67,24.153354]
[1726267398070,8.2624336,139.7,139.69,0.12549]
[1726267398277,8.2624336,139.7,139.69,0.25098]
[1726267398469,8.2624336,139.7,139.69,0.37647]
[1726267398678,8.2624336,139.7,139.69,24.153354]
[1726267398885,8.2624336,139.7,139.69,44.153354]
[1726267405297,8.2624336,139.7,139.69,44.78616399]
[1726267406300,8.2624336,139.7,139.69,44.153354]
[1726267407607,8.2624336,139.7,139.69,0.37647]
[1726267409376,8.2624336,139.7,139.68,20.0]
[1726267410010,8.2624336,139.7,139.67,0.25098]
[1726267410309,8.2624336,139.7,139.65,20.0]
[1726267410989,8.2624336,139.7,139.64,22.86850061]
[1726267411602,8.2624336,139.7,139.64,7.38570061]
[1726267412415,8.2624336,139.7,139.65,20.37647]
[1726267412909,8.2624336,139.7,139.65,29.32297714]
[1726267413509,8.2624336,139.7,139.66,23.776884]
[1726267413809,8.2624336,139.7,139.67,20.37647]
[1726267414219,8.2624336,139.7,139.69,20.25098]
[1726267414401,8.2624336,139.7,139.69,20.37647]
[1726267414789,8.2624336,139.7,139.69,44.153354]
[1726267426527,8.2624336,139.7,139.69,45.58453961]
[1726267426908,8.2624336,139.7,139.69,54.53104675]
[1726267431335,8.2624336,139.7,139.69,44.153354]
[1726267435429,8.2624336,139.7,139.69,49.7721957]
[1726267438524,8.2624336,139.7,139.69,49.772227]
[1726267440325,8.2624336,139.7,139.69,58.71873414]
[1726267442013,8.2624336,139.7,139.69,49.772227]
[1726267442620,8.2624336,139.7,139.69,25.744363]
[1726267444114,8.2624336,139.7,139.69,5.869853]
[1726267444333,8.2624336,139.7,139.69,5.62355364]
[1726267447842,8.2624336,139.7,139.63,8.94650714]
[1726267448135,8.2624336,139.7,139.64,49.77710983]
[1726267448315,8.2624336,139.7,139.66,20.25098]
[1726267448522,8.2624336,139.7,139.67,5.62375583]
[1726267448713,8.2624336,139.7,139.68,5.62375583]
[1726267448918,8.2624336,139.7,139.69,5.62375583]
[1726267456048,8.2624336,139.7,139.59,15.5394]
[1726267456234,8.2624336,139.7,139.62,5.62625688]
[1726267456421,8.2624336,139.7,139.63,5.62625688]
[1726267456616,8.2624336,139.7,139.64,5.62625688]
[1726267456819,8.2624336,139.7,139.65,5.62625688]
[1726267457132,8.2624336,139.7,139.66,5.62625688]
[1726267457349,8.2624336,139.7,139.67,5.62625688]
[1726267457530,8.2624336,139.7,139.59,22.92772508]
[1726267457844,8.2624336,139.7,139.63,20.12549]
[1726267458042,8.2624336,139.7,139.64,5.62667659]
[1726267458241,8.2624336,139.7,139.65,5.62667659]
[1726267458447,8.2624336,139.7,139.66,5.62667659]
[1726267458742,8.2624336,139.7,139.67,5.62587229]
[1726267458949,8.2624336,139.7,139.63,0.25098]
[1726267459245,8.2624336,139.7,139.64,5.62596425]
[1726267459540,8.2624336,139.7,139.63,0.25098]
[1726267459745,8.2624336,139.7,139.63,24.027864]
[1726267459948,8.2624336,139.7,139.65,0.25098]
[1726267464048,8.2624336,139.7,139.65,24.027864]
[1726267464358,8.2624336,139.7,139.67,0.25098]
[1726267479739,8.2624336,139.7,139.68,0.25098]
[1726267485136,8.2624336,139.7,139.68,0.27098]
[1726267487455,8.2624336,139.7,139.68,0.02]
[1726267501877,8.2624336,139.7,139.68,0.27098]
[1726267502071,8.2624336,139.7,139.68,20.27098]
[1726267502760,8.2624336,139.7,139.68,0.14549]
[1726267502950,8.2624336,139.7,139.68,0.02]
[1726267510882,8.2624336,139.7,139.69,20.0]
[1726267511188,8.2624336,139.7,139.69,44.153354]
[1726267518977,8.2624336,139.7,139.69,20.37647]
[1726267519289,8.2624336,139.7,139.68,0.02]
[1726267519491,8.2624336,139.7,139.69,5.64213902]
[1726267521403,8.2624336,139.7,139.69,5.64353581]
[1726267524375,8.2624336,139.7,139.69,5.76902581]
[1726267524701,8.2624336,139.7,139.69,5.89451581]
[1726267524897,8.2624336,139.7,139.69,0.25098]
[1726267525195,8.2624336,139.7,139.69,6.01870946]
[1726267525501,8.2624336,139.7,139.69,29.79559346]
[1726267528671,8.2624336,139.7,139.69,49.79030497]
[1726267534279,8.2624336,139.7,139.69,65.06820497]
[1726267535492,8.2624336,139.7,139.69,65.06650296]
[1726267536489,8.2624336,139.7,139.69,75.06650296]
[1726267536691,0.2624336,139.74,139.71,20.25098]
[1726267536901,0.2624336,139.74,139.73,44.027864]
[1726267537194,0.2624336,139.74,139.73,49.78860296]
[1726267538702,0.2624336,139.74,139.73,49.78208378]
[1726267542107,0.2624336,139.74,139.73,49.78227028]
[1726267544718,0.2624336,139.74,139.73,25.62891628]
[1726267545985,0.2624336,139.74,139.73,49.78227028]
[1726267551423,0.2624336,139.74,139.73,49.65678028]
[1726267551618,0.2624336,139.74,139.73,25.75440628]
[1726267552001,0.2624336,139.74,139.73,0.12549]
[1726267552325,0.2624336,139.74,139.73,25.75526062]
[1726267552726,0.2624336,139.74,139.73,49.78312462]
[1726267558934,0.2624336,139.74,139.73,49.78244755]
[1726267564547,0.2624336,139.74,139.73,49.78229842]
[1726267564931,0.2624336,139.74,139.73,44.153354]
[1726267565234,0.2624336,139.74,139.73,49.78229625]